fUSD/lending_fUSD_20250202
["ID","MTS","AMOUNT","RATE_DAILY","PERIOD"]
[351332679,1738516280102,-500.0,0.00011506,2]
[351332680,1738516280113,-500.0,0.00011506,2]
[351332681,1738516280122,-919.37,0.00011506,2]
[351332682,1738516280132,-500.0,0.00011506,2]
[351332683,1738516280142,-500.0,0.00011506,2]
[351332684,1738516280153,-500.0,0.00011506,2]
[351332685,1738516280163,-500.0,0.00011506,2]
[351332686,1738516280172,-500.0,0.00011506,2]
[351332687,1738516280182,-1229.6,0.00011506,2]
[351332688,1738516280193,-500.0,0.00011506,2]
[351332689,1738516280203,-1004.74,0.00011506,2]
[351332690,1738516280213,-500.0,0.00011506,2]
[351332691,1738516280224,-500.0,0.00011506,2]
[351332692,1738516280237,-500.0,0.00011506,2]
[351332693,1738516280247,-500.0,0.00011506,2]
[351332694,1738516280257,-508.68,0.00011506,2]
[351332695,1738516280267,-500.0,0.00011506,2]
[351332696,1738516280277,-500.0,0.00011506,2]
[351332697,1738516280286,-500.0,0.00011506,2]
[351332698,1738516280296,-500.0,0.00011506,2]
[351332699,1738516280305,-1560.97,0.00011506,2]
[351332700,1738516280315,-500.0,0.00011506,2]
[351332701,1738516280325,-500.0,0.00011506,2]
[351332702,1738516280335,-500.0,0.00011506,2]
[351332703,1738516280344,-500.0,0.00011506,2]
[351332704,1738516280354,-935.8,0.00011506,2]
[351332705,1738516280363,-500.0,0.00011506,2]
[351332706,1738516280374,-500.0,0.00011506,2]
[351332707,1738516280383,-500.0,0.00011506,2]
[351332708,1738516280393,-1597.78,0.00011506,2]
[351332709,1738516280402,-500.0,0.00011506,2]
[351332710,1738516280412,-500.0,0.00011506,2]
[351332711,1738516280421,-500.0,0.00011506,2]
[351332712,1738516280431,-686.32,0.00011506,2]
[351332713,1738516280441,-500.0,0.00011506,2]
[351332714,1738516280451,-500.0,0.00011506,2]
[351332715,1738516280460,-500.0,0.00011506,2]
[351332716,1738516280471,-500.0,0.00011506,2]
[351332717,1738516280487,-500.0,0.00011506,2]
[351332718,1738516280496,-747.2,0.00011506,2]
[351332719,1738516280506,-500.0,0.00011506,2]
[351332720,1738516280516,-931.63,0.00011506,2]
[351332721,1738516280525,-500.0,0.00011506,2]
[351332722,1738516280535,-544.19,0.00011506,2]
[351332723,1738516280546,-500.0,0.00011506,2]
[351332724,1738516280555,-500.0,0.00011506,2]
[351332725,1738516280565,-793.15,0.00011506,2]
[351332726,1738516280576,-334.73878528,0.00011506,2]
[351332727,1738516280586,-500.0,0.00011506,2]
[351332728,1738516280596,-834.52,0.00011506,2]
[351332729,1738516280606,-500.0,0.00011506,2]
[351332730,1738516280615,-500.0,0.00011506,2]
[351332731,1738516280625,-1545.01,0.00011506,2]
[351332732,1738516280635,-500.0,0.00011506,2]
[351332733,1738516280646,-500.0,0.00011506,2]
[351332734,1738516280656,-500.0,0.00011506,2]
[351332735,1738516280666,-1108.92,0.00011506,2]
[351332736,1738516280676,-500.0,0.00011506,2]
[351332737,1738516280687,-500.0,0.00011506,2]
[351332738,1738516280696,-500.0,0.00011506,2]
[351332739,1738516280706,-500.0,0.00011506,2]
[351332740,1738516280716,-500.0,0.00011506,2]
[351332741,1738516280726,-500.0,0.00011506,2]
[351332742,1738516280740,-722.24,0.00011506,2]
[351332743,1738516280750,-571.77,0.00011506,2]
[351332744,1738516280759,-500.0,0.00011506,2]
[351332745,1738516280768,-1136.17,0.00011506,2]
[351332746,1738516280778,-500.0,0.00011506,2]
[351332747,1738516280788,-500.0,0.00011506,2]
[351332748,1738516280798,-500.0,0.00011506,2]
[351332749,1738516280808,-500.0,0.00011506,2]
[351332750,1738516280818,-710.69,0.00011506,2]
[351332751,1738516280827,-857.14,0.00011506,2]
[351332752,1738516280838,-500.0,0.00011506,2]
[351332753,1738516280847,-500.0,0.00011506,2]
[351332754,1738516280857,-1750.64,0.00011506,2]
[351332755,1738516280867,-500.0,0.00011506,2]
[351332756,1738516280876,-500.0,0.00011506,2]
[351332757,1738516280886,-500.0,0.00011506,2]
[351332758,1738516280896,-500.0,0.00011506,2]
[351332759,1738516280906,-500.0,0.00011506,2]
[351332760,1738516280916,-500.0,0.00011506,2]
[351332761,1738516280926,-528.44634955,0.00011506,2]
[351332762,1738516280935,-500.0,0.00011506,2]
[351332763,1738516280946,-500.0,0.00011506,2]
[351332764,1738516280956,-842.59,0.00011506,2]
[351332765,1738516280965,-500.0,0.00011506,2]
[351332766,1738516280975,-500.0,0.00011506,2]
[351332767,1738516280988,-515.46849656,0.00011506,2]
[351332768,1738516280998,-775.0,0.00011506,2]
[351332769,1738516281008,-625.53,0.00011506,2]
[351332770,1738516281019,-500.0,0.00011506,2]
[351332771,1738516281030,-500.0,0.00011506,2]
[351332772,1738516281040,-500.0,0.00011506,2]
[351332773,1738516281049,-500.0,0.00011506,2]
[351332774,1738516281060,-500.0,0.00011506,2]
[351332775,1738516281069,-739.9,0.00011506,2]
[351332776,1738516281079,-500.0,0.00011506,2]
[351332777,1738516281089,-500.0,0.00011506,2]
[351332778,1738516281099,-370.6382123,0.00011506,2]
[351332779,1738516281110,-500.0,0.00011506,2]
[351332780,1738516281121,-500.0,0.00011506,2]
[351332781,1738516281130,-1495.04,0.00011506,2]
[351332782,1738516281139,-500.0,0.00011506,2]
[351332783,1738516281149,-500.0,0.00011506,2]
[351332784,1738516281158,-500.0,0.00011506,2]
[351332785,1738516281167,-844.5,0.00011506,2]
[351332786,1738516281176,-500.0,0.00011506,2]
[351332787,1738516281186,-500.0,0.00011506,2]
[351332788,1738516281196,-500.0,0.00011506,2]
[351332789,1738516281206,-500.0,0.00011506,2]
[351332790,1738516281215,-446.80948328,0.00011506,2]
[351332791,1738516281224,-500.0,0.00011506,2]
[351332792,1738516281236,-500.0,0.00011506,2]
[351332793,1738516281246,-500.0,0.00011506,2]
[351332794,1738516281256,-500.0,0.00011506,2]
[351332795,1738516281266,-500.0,0.00011506,2]
[351332796,1738516281275,-500.0,0.00011506,2]
[351332797,1738516281285,-684.18,0.00011506,2]
[351332798,1738516281295,-500.0,0.00011506,2]
[351332799,1738516281305,-500.0,0.00011506,2]
[351332800,1738516281314,-500.0,0.00011506,2]
[351332801,1738516281324,-500.0,0.00011506,2]
[351332802,1738516281333,-631.66,0.00011506,2]
[351332803,1738516281342,-500.0,0.00011506,2]
[351332804,1738516281352,-500.0,0.00011506,2]
[351332805,1738516281361,-500.0,0.00011506,2]
[351332806,1738516281371,-551.59,0.00011506,2]
[351332807,1738516281381,-500.0,0.00011506,2]
[351332808,1738516281390,-500.0,0.00011506,2]
[351332809,1738516281400,-1084.43,0.00011506,2]
[351332810,1738516281409,-500.0,0.00011506,2]
[351332811,1738516281419,-640.33094123,0.00011506,2]
[351332812,1738516281428,-500.0,0.00011506,2]
[351332813,1738516281438,-500.0,0.00011506,2]
[351332814,1738516281448,-500.0,0.00011506,2]
[351332815,1738516281458,-500.0,0.00011506,2]
[351332816,1738516281468,-840.48,0.00011506,2]
[351332817,1738516281477,-500.0,0.00011506,2]
[351332818,1738516281492,-1710.72,0.00011506,2]
[351332819,1738516281503,-500.0,0.00011506,2]
[351332820,1738516281512,-500.0,0.00011506,2]
[351332821,1738516281523,-500.0,0.00011506,2]
[351332822,1738516281532,-500.0,0.00011506,2]
[351332823,1738516281542,-517.38,0.00011506,2]
[351332824,1738516281552,-760.74,0.00011506,2]
[351332825,1738516281562,-500.0,0.00011506,2]
[351332826,1738516281571,-849.46,0.00011506,2]
[351332827,1738516281582,-500.0,0.00011506,2]
[351332828,1738516281592,-500.0,0.00011506,2]
[351332829,1738516281601,-2007.31,0.00011506,2]
[351332830,1738516281611,-500.0,0.00011506,2]
[351332831,1738516281621,-500.0,0.00011506,2]
[351332832,1738516281630,-500.0,0.00011506,2]
[351332833,1738516281640,-892.19,0.00011506,2]
[351332834,1738516281649,-658.76,0.00011506,2]
[351332835,1738516281659,-568.54672268,0.00011506,2]
[351332836,1738516281669,-500.0,0.00011506,2]
[351332837,1738516281678,-1757.52,0.00011506,2]
[351332838,1738516281688,-500.0,0.00011506,2]
[351332839,1738516281699,-1228.76,0.00011506,2]
[351332840,1738516281709,-1094.69,0.00011506,2]
[351332841,1738516281719,-574.16231037,0.00011506,2]
[351332842,1738516281728,-500.0,0.00011506,2]
[351332843,1738516281740,-500.0,0.00011506,2]
[351332844,1738516281749,-518.37,0.00011506,2]
[351332845,1738516281759,-500.0,0.00011506,2]
[351332846,1738516281769,-500.0,0.00011506,2]
[351332847,1738516281778,-500.0,0.00011506,2]
[351332848,1738516281788,-505.56768991,0.00011506,2]
[351332849,1738516281797,-3130.51,0.00011506,2]
[351332850,1738516281807,-506.38165543,0.00011506,2]
[351332851,1738516281818,-1929.48,0.00011506,2]
[351332852,1738516281828,-500.0,0.00011506,2]
[351332853,1738516281838,-510.15870037,0.00011506,2]
[351332854,1738516281848,-500.0,0.00011506,2]
[351332855,1738516281858,-500.0,0.00011506,2]
[351332856,1738516281868,-1280.69,0.00011506,2]
[351332857,1738516281877,-500.0,0.00011506,2]
[351332858,1738516281887,-500.0,0.00011506,2]
[351332859,1738516281897,-1077.4,0.00011506,2]
[351332860,1738516281907,-500.0,0.00011506,2]
[351332861,1738516281917,-500.0,0.00011506,2]
[351332862,1738516281926,-500.0,0.00011506,2]
[351332863,1738516281935,-500.0,0.00011506,2]
[351332864,1738516281945,-877.75,0.00011506,2]
[351332865,1738516281954,-2073.0,0.00011506,2]
[351332866,1738516281963,-500.0,0.00011506,2]
[351332867,1738516281972,-4819.38,0.00011506,2]
[351332868,1738516281984,-500.0,0.00011506,2]
[351332869,1738516281994,-506.78946765,0.00011506,2]
[351332870,1738516282010,-1736.82,0.00011506,2]
[351332871,1738516282019,-500.0,0.00011506,2]
[351332872,1738516282029,-700.48,0.00011506,2]
[351332873,1738516282039,-500.0,0.00011506,2]
[351332874,1738516282050,-500.0,0.00011506,2]
[351332875,1738516282060,-1072.57,0.00011506,2]
[351332876,1738516282069,-3729.39,0.00011506,2]
[351332877,1738516282080,-500.0,0.00011506,2]
[351332878,1738516282090,-500.0,0.00011506,2]
[351332879,1738516282099,-687.01,0.00011506,2]
[351332880,1738516282109,-1365.66,0.00011506,2]
[351332881,1738516282118,-806.824741,0.00011506,2]
[351332882,1738516282128,-500.0,0.00011506,2]
[351332883,1738516282138,-2303.89,0.00011506,2]
[351332884,1738516282148,-500.0,0.00011506,2]
[351332885,1738516282157,-1452.31,0.00011506,2]
[351332886,1738516282167,-4008.48,0.00011506,2]
[351332887,1738516282177,-1355.16,0.00011506,2]
[351332888,1738516282186,-500.0,0.00011506,2]
[351332889,1738516282196,-500.0,0.00011506,2]
[351332890,1738516282205,-3631.07,0.00011506,2]
[351332891,1738516282215,-500.0,0.00011506,2]
[351332892,1738516282224,-1416.22,0.00011506,2]
[351332893,1738516282238,-431.478325,0.00011506,2]
[351332894,1738516282247,-547.65,0.00011506,2]
[351332895,1738516282257,-500.0,0.00011506,2]
[351332896,1738516282266,-2391.97,0.00011506,2]
[351332897,1738516282275,-500.0,0.00011506,2]
[351332898,1738516282285,-878.43,0.00011506,2]
[351332899,1738516282295,-739.38,0.00011506,2]
[351332900,1738516282306,-658.78,0.00011506,2]
[351332901,1738516282316,-525.07215584,0.00011506,2]
[351332902,1738516282326,-500.0,0.00011506,2]
[351332903,1738516282336,-1291.62,0.00011506,2]
[351332904,1738516282345,-1768.17,0.00011506,2]
[351332905,1738516282355,-715.219347,0.00011506,2]
[351332906,1738516282365,-500.0,0.00011506,2]
[351332907,1738516282376,-500.0,0.00011506,2]
[351332908,1738516282386,-500.0,0.00011506,2]
[351332909,1738516282395,-3801.08,0.00011506,2]
[351332910,1738516282406,-2540.16,0.00011506,2]
[351332911,1738516282416,-474.746717,0.00011506,2]
[351332912,1738516282427,-1197.82,0.00011506,2]
[351332913,1738516282437,-2156.68,0.00011506,2]
[351332914,1738516282447,-710.0,0.00011506,2]
[351332915,1738516282527,-500.0,0.00011506,2]
[351332916,1738516282538,-500.0,0.00011506,2]
[351332917,1738516282548,-5321.51,0.00011506,2]
[351332918,1738516282558,-500.0,0.00011506,2]
[351332919,1738516282568,-500.0,0.00011506,2]
[351332920,1738516282578,-583.29,0.00011506,2]
[351332921,1738516282588,-2286.17,0.00011506,2]
[351332922,1738516282598,-3334.13,0.00011506,2]
[351332923,1738516282608,-709.12,0.00011506,2]
[351332924,1738516282617,-538.86,0.00011506,2]
[351332925,1738516282627,-788.53,0.00011506,2]
[351332926,1738516282636,-3213.09,0.00011506,2]
[351332927,1738516282646,-500.0,0.00011506,2]
[351332928,1738516282656,-500.0,0.00011506,2]
[351332929,1738516282666,-500.0,0.00011506,2]
[351332930,1738516282676,-500.0,0.00011506,2]
[351332931,1738516282685,-500.0,0.00011506,2]
[351332932,1738516282695,-500.0,0.00011506,2]
[351332933,1738516282705,-500.0,0.00011506,2]
[351332934,1738516282715,-472.743312,0.00011506,2]
[351332935,1738516282724,-500.0,0.00011506,2]
[351332936,1738516282737,-3347.0,0.00011506,2]
[351332937,1738516282747,-500.0,0.00011506,2]
[351332938,1738516282757,-500.0,0.00011506,2]
[351332939,1738516282767,-500.0,0.00011506,2]
[351332940,1738516282778,-1791.3,0.00011506,2]
[351332941,1738516282788,-1865.45,0.00011506,2]
[351332942,1738516282799,-4126.51,0.00011506,2]
[351332943,1738516282808,-599.68879,0.00011506,2]
[351332944,1738516282819,-1290.25,0.00011506,2]
[351332945,1738516282829,-500.0,0.00011506,2]
[351332946,1738516282839,-534.57,0.00011506,2]
[351332947,1738516282850,-4106.86,0.00011506,2]
[351332948,1738516282860,-2895.12,0.00011506,2]
[351332949,1738516282871,-1698.65,0.00011506,2]
[351332950,1738516282882,-500.0,0.00011506,2]
[351332951,1738516282891,-500.0,0.00011506,2]
[351332952,1738516282902,-500.0,0.00011506,2]
[351332953,1738516282912,-500.0,0.00011506,2]
[351332954,1738516282922,-448.017146,0.00011506,2]
[351332955,1738516282932,-855.64,0.00011506,2]
[351332956,1738516282943,-500.0,0.00011506,2]
[351332957,1738516282954,-500.0,0.00011506,2]
[351332958,1738516282963,-505.47479646,0.00011506,2]
[351332959,1738516282975,-7948.23,0.00011506,2]
[351332960,1738516282987,-3699.44,0.00011506,2]
[351332961,1738516282997,-1134.77,0.00011506,2]
[351332962,1738516283008,-1388.83,0.00011506,2]
[351332963,1738516283021,-1267.53,0.00011506,2]
[351332964,1738516283031,-1281.92,0.00011506,2]
[351332965,1738516283042,-700.239809,0.00011506,2]
[351332966,1738516283053,-1852.27,0.00011506,2]
[351332967,1738516283064,-500.0,0.00011506,2]
[351332968,1738516283076,-772.18,0.00011506,2]
[351332969,1738516283086,-22309.31,0.00011506,2]
[351332970,1738516283098,-10331.27,0.00011506,2]
[351332971,1738516283108,-3740.63,0.00011506,2]
[351332972,1738516283119,-500.0,0.00011506,2]
[351332973,1738516283130,-2548.06,0.00011506,2]
[351332974,1738516283140,-2430.52,0.00011506,2]
[351332975,1738516283150,-757.34,0.00011506,2]
[351332976,1738516283160,-500.0,0.00011506,2]
[351332977,1738516283171,-5491.14,0.00011506,2]
[351332978,1738516283182,-500.0,0.00011506,2]
[351332979,1738516283193,-3483.73,0.00011506,2]
[351332980,1738516283203,-500.0,0.00011506,2]
[351332981,1738516283213,-3375.4,0.00011506,2]
[351332982,1738516283223,-1965.31,0.00011506,2]
[351332983,1738516283235,-715.854792,0.00011506,2]
[351332984,1738516283244,-500.0,0.00011506,2]
[351332985,1738516283254,-573.22,0.00011506,2]
[351332986,1738516283264,-499.671825,0.00011506,2]
[351332987,1738516283274,-5575.16,0.00011506,2]
[351332988,1738516283286,-500.0,0.00011506,2]
[351332989,1738516283297,-3861.12,0.00011506,2]
[351332990,1738516283307,-500.0,0.00011506,2]
[351332991,1738516283318,-6565.29,0.00011506,2]
[351332992,1738516283328,-369.61856486,0.00011506,2]
[351332993,1738516283337,-2279.37,0.00011506,2]
[351332994,1738516283347,-1098.28,0.00011506,2]
[351332995,1738516283357,-500.0,0.00011506,2]
[351332996,1738516283366,-5388.59,0.00011506,2]
[351332997,1738516283376,-1360.61,0.00011506,2]
[351332998,1738516283385,-500.0,0.00011506,2]
[351332999,1738516283394,-500.0,0.00011506,2]
[351333000,1738516283404,-500.0,0.00011506,2]
[351333001,1738516283414,-658.158992,0.00011506,2]
[351333002,1738516283424,-2722.34,0.00011506,2]
[351333003,1738516283434,-864.3,0.00011506,2]
[351333004,1738516283443,-469.57071,0.00011506,2]
[351333005,1738516283453,-500.0,0.00011506,2]
[351333006,1738516283462,-3044.13,0.00011506,2]
[351333007,1738516283471,-500.0,0.00011506,2]
[351333008,1738516283480,-729.59,0.00011506,2]
[351333009,1738516283491,-500.0,0.00011506,2]
[351333010,1738516283501,-500.0,0.00011506,2]
[351333011,1738516283511,-3192.39,0.00011506,2]
[351333012,1738516283520,-1342.13,0.00011506,2]
[351333013,1738516283530,-3427.67,0.00011506,2]
[351333014,1738516283539,-2027.55,0.00011506,2]
[351333015,1738516283549,-500.0,0.00011506,2]
[351333016,1738516283558,-500.0,0.00011506,2]
[351333017,1738516283569,-500.0,0.00011506,2]
[351333018,1738516283579,-4252.01,0.00011506,2]
[351333019,1738516283589,-2583.64,0.00011506,2]
[351333020,1738516283599,-10284.26,0.00011506,2]
[351333021,1738516283609,-2652.56,0.00011506,2]
[351333022,1738516283619,-633.56,0.00011506,2]
[351333023,1738516283628,-1427.7,0.00011506,2]
[351333024,1738516283638,-12127.67,0.00011506,2]
[351333025,1738516283648,-555.992645,0.00011506,2]
[351333026,1738516283657,-576.949377,0.00011506,2]
[351333027,1738516283667,-500.0,0.00011506,2]
[351333028,1738516283678,-500.0,0.00011506,2]
[351333029,1738516283688,-500.0,0.00011506,2]
[351333030,1738516283697,-7300.52,0.00011506,2]
[351333031,1738516283707,-4063.4,0.00011506,2]
[351333032,1738516283716,-6290.38,0.00011506,2]
[351333033,1738516283726,-824.29,0.00011506,2]
[351333034,1738516283738,-1460.02,0.00011506,2]
[351333035,1738516283748,-500.0,0.00011506,2]
[351333036,1738516283759,-500.0,0.00011506,2]
[351333037,1738516283768,-500.0,0.00011506,2]
[351333038,1738516283778,-500.0,0.00011506,2]
[351333039,1738516283788,-2235.5,0.00011506,2]
[351333040,1738516283797,-1908.31,0.00011506,2]
[351333041,1738516283807,-7227.41,0.00011506,2]
[351333042,1738516283816,-573.54491266,0.00011506,2]
[351333043,1738516283826,-6243.33,0.00011506,2]
[351333044,1738516283835,-2827.59,0.00011506,2]
[351333045,1738516283845,-500.0,0.00011506,2]
[351333046,1738516283855,-911.77,0.00011506,2]
[351333047,1738516283865,-1653.28,0.00011506,2]
[351333048,1738516283875,-571.56294,0.00011506,2]
[351333049,1738516283885,-616.89484881,0.00011506,2]
[351333050,1738516283896,-500.0,0.00011506,2]
[351333051,1738516283906,-7297.29,0.00011506,2]
[351333052,1738516283916,-840.74,0.00011506,2]
[351333053,1738516283926,-500.0,0.00011506,2]
[351333054,1738516283938,-500.0,0.00011506,2]
[351333055,1738516283948,-563.21275581,0.00011506,2]
[351333056,1738516283959,-5332.32,0.00011506,2]
[351333057,1738516283969,-903.79,0.00011506,2]
[351333058,1738516283979,-1169.62,0.00011506,2]
[351333059,1738516283993,-3045.71,0.00011506,2]
[351333060,1738516284011,-2256.46,0.00011506,2]
[351333061,1738516284025,-500.0,0.00011506,2]
[351333062,1738516284035,-500.0,0.00011506,2]
[351333063,1738516284045,-1943.86,0.00011506,2]
[351333064,1738516284055,-2045.5,0.00011506,2]
[351333065,1738516284065,-454.142217,0.00011506,2]
[351333066,1738516284075,-1318.91,0.00011506,2]
[351333067,1738516284084,-500.0,0.00011506,2]
[351333068,1738516284094,-500.0,0.00011506,2]
[351333069,1738516284105,-500.0,0.00011506,2]
[351333070,1738516284114,-2414.38,0.00011506,2]
[351333071,1738516284124,-554.542878,0.00011506,2]
[351333072,1738516284134,-1787.61,0.00011506,2]
[351333073,1738516284144,-719.96,0.00011506,2]
[351333074,1738516284154,-500.0,0.00011506,2]
[351333075,1738516284165,-1536.13,0.00011506,2]
[351333076,1738516284174,-618.23,0.00011506,2]
[351333077,1738516284184,-1518.86,0.00011506,2]
[351333078,1738516284194,-628.12,0.00011506,2]
[351333079,1738516284204,-500.0,0.00011506,2]
[351333080,1738516284215,-11569.23,0.00011506,2]
[351333081,1738516284225,-2634.47,0.00011506,2]
[351333082,1738516284238,-826.16,0.00011506,2]
[351333083,1738516284248,-500.0,0.00011506,2]
[351333084,1738516284258,-3226.39,0.00011506,2]
[351333085,1738516284268,-5191.49,0.00011506,2]
[351333086,1738516284278,-6920.81,0.00011506,2]
[351333087,1738516284289,-3073.21,0.00011506,2]
[351333088,1738516284298,-500.0,0.00011506,2]
[351333089,1738516284307,-7847.47,0.00011506,2]
[351333090,1738516284317,-490.280531,0.00011506,2]
[351333091,1738516284327,-500.0,0.00011506,2]
[351333092,1738516284337,-2251.09,0.00011506,2]
[351333093,1738516284347,-614.64,0.00011506,2]
[351333094,1738516284357,-500.0,0.00011506,2]
[351333095,1738516284368,-1544.32,0.00011506,2]
[351333096,1738516284377,-230.841971,0.00011506,2]
[351333097,1738516284387,-708.79,0.00011506,2]
[351333098,1738516284396,-500.0,0.00011506,2]
[351333099,1738516284406,-500.0,0.00011506,2]
[351333100,1738516284415,-230.841971,0.00011506,2]
[351333101,1738516284425,-2556.72,0.00011506,2]
[351333102,1738516284435,-500.0,0.00011506,2]
[351333103,1738516284445,-924.66,0.00011521,2]
[351333104,1738516284455,-1506.07874597,0.00011522,2]
[351333105,1738516284465,-2500.0,0.0001164,2]
[351333106,1738516284475,-2500.0,0.0001164,2]
[351333107,1738516284487,-500.0,0.00011642,2]
[351333108,1738516284497,-500.0,0.00011642,2]
[351333109,1738516284506,-500.0,0.00011642,2]
[351333110,1738516284516,-500.0,0.00011642,2]
[351333111,1738516284526,-500.0,0.00011642,2]
[351333112,1738516284535,-500.0,0.00011642,2]
[351333113,1738516284546,-158.53843217,0.00011642,2]
[351333114,1738516284556,-500.0,0.00011642,2]
[351333115,1738516284566,-500.0,0.00011642,2]
[351333116,1738516284576,-500.0,0.00011642,2]
[351333117,1738516284586,-500.0,0.00011642,2]
[351333118,1738516284597,-500.0,0.00011642,2]
[351333119,1738516284607,-500.0,0.00011642,2]
[351333120,1738516284618,-500.0,0.00011642,2]
[351333121,1738516284628,-341.25060121,0.00011642,2]
[351333122,1738516284638,-500.0,0.00011642,2]
[351333123,1738516284648,-655.84,0.00011642,2]
[351333124,1738516284658,-500.0,0.00011642,2]
[351333125,1738516284668,-500.0,0.00011642,2]
[351333126,1738516284678,-544.61,0.00011642,2]
[351333127,1738516284687,-500.0,0.00011642,2]
[351333128,1738516284696,-444.26090828,0.00011642,2]
[351333129,1738516284706,-684.7,0.00011642,2]
[351333130,1738516284716,-500.0,0.00011642,2]
[351333131,1738516284725,-500.0,0.00011642,2]
[351333132,1738516284738,-500.0,0.00011642,2]
[351333133,1738516284749,-1092.39,0.00011642,2]
[351333134,1738516284760,-500.0,0.00011642,2]
[351333135,1738516284769,-500.0,0.00011642,2]
[351333136,1738516284779,-654.63,0.00011642,2]
[351333137,1738516284789,-624.83,0.00011642,2]
[351333138,1738516284799,-560.19,0.00011642,2]
[351333139,1738516284808,-500.0,0.00011642,2]
[351333140,1738516284818,-500.0,0.00011642,2]
[351333141,1738516284828,-500.0,0.00011642,2]
[351333142,1738516284838,-1210.49,0.00011642,2]
[351333143,1738516284848,-554.48,0.00011642,2]
[351333144,1738516284858,-500.0,0.00011642,2]
[351333145,1738516284868,-604.80122997,0.00011642,2]
[351333146,1738516284878,-500.0,0.00011642,2]
[351333147,1738516284888,-500.0,0.00011642,2]
[351333148,1738516284899,-713.02,0.00011642,2]
[351333149,1738516284910,-500.0,0.00011642,2]
[351333150,1738516284920,-500.0,0.00011642,2]
[351333151,1738516284931,-1374.75,0.00011642,2]
[351333152,1738516284941,-710.67,0.00011642,2]
[351333153,1738516284951,-500.0,0.00011642,2]
[351333154,1738516284963,-500.0,0.00011642,2]
[351333155,1738516284973,-500.0,0.00011642,2]
[351333156,1738516284987,-500.0,0.00011642,2]
[351333157,1738516284997,-1427.71,0.00011642,2]
[351333158,1738516285012,-500.0,0.00011642,2]
[351333159,1738516285023,-1604.84,0.00011642,2]
[351333160,1738516285032,-500.0,0.00011642,2]
[351333161,1738516285044,-570.87664026,0.00011642,2]
[351333162,1738516285054,-500.0,0.00011642,2]
[351333163,1738516285064,-500.0,0.00011642,2]
[351333164,1738516285074,-500.0,0.00011642,2]
[351333165,1738516285085,-1584.96,0.00011642,2]
[351333166,1738516285096,-500.0,0.00011642,2]
[351333167,1738516285107,-590.40761639,0.00011642,2]
[351333168,1738516285118,-876.74,0.00011642,2]
[351333169,1738516285128,-569.44,0.00011642,2]
[351333170,1738516285138,-568.65,0.00011642,2]
[351333171,1738516285148,-820.93,0.00011642,2]
[351333172,1738516285158,-716.72,0.00011642,2]
[351333173,1738516285169,-500.0,0.00011642,2]
[351333174,1738516285179,-500.0,0.00011642,2]
[351333175,1738516285189,-648.71,0.00011642,2]
[351333176,1738516285200,-500.0,0.00011642,2]
[351333177,1738516285210,-508.87949284,0.00011642,2]
[351333178,1738516285221,-500.0,0.00011642,2]